bitfinex/quotes_BTCUSD_20260117
["timestamp","ask_amount","ask_price","bid_price","bid_amount"]
[1768640439474,0.01050376,95204.0,95199.0,0.01050431]
[1768640439675,0.01050365,95205.0,95200.0,0.0105042]
[1768640439897,0.01050365,95205.0,95201.0,0.01050409]
[1768640441068,0.01050353,95206.0,95201.0,0.01045868]
[1768640441391,0.01050365,95205.0,95201.0,0.01045868]
[1768640441777,0.01050365,95205.0,95200.0,0.0105042]
[1768640441983,0.05880608,95204.0,95200.0,0.0105042]
[1768640442399,0.04830232,95204.0,95200.0,0.0105042]
[1768640442570,0.04830232,95204.0,95201.0,0.01050409]
[1768640442802,0.04830232,95204.0,95200.0,0.0105042]
[1768640443035,0.04830232,95202.0,95199.0,0.01050431]
[1768640443982,0.01050376,95204.0,95200.0,0.0105042]
[1768640444206,0.05880597,95205.0,95200.0,0.0105042]
[1768640445086,0.05880597,95205.0,95201.0,0.01050409]
[1768640446180,0.01050376,95204.0,95200.0,0.0105042]
[1768640446387,0.05880597,95205.0,95200.0,0.0105042]
[1768640446596,0.05880597,95205.0,95198.0,0.01050442]
[1768640446798,0.01050376,95204.0,95200.0,0.0105042]
[1768640447457,0.05880597,95205.0,95200.0,0.0105042]
[1768640447668,0.01050376,95204.0,95200.0,0.0105042]
[1768640448048,0.01050376,95204.0,95199.0,0.01050431]
[1768640448247,0.01050387,95203.0,95199.0,0.01050431]
[1768640449095,0.01050387,95203.0,95198.0,0.01050442]
[1768640451068,0.01050398,95202.0,95196.0,0.01050464]
[1768640451295,0.01050376,95204.0,95198.0,0.05252204]
[1768640452294,0.01050376,95204.0,95199.0,0.01050431]
[1768640452530,0.01050376,95204.0,95200.0,0.0105042]
[1768640452919,0.01050376,95204.0,95200.0,0.00975995]
[1768640453568,0.01050376,95204.0,95199.0,0.01050431]
[1768640454933,0.01050376,95204.0,95200.0,0.0105042]
[1768640456614,0.01050376,95204.0,95199.0,0.01050431]
[1768640456817,0.01050387,95203.0,95197.0,0.01050453]
[1768640457025,0.01050376,95204.0,95197.0,0.01050453]
[1768640457026,0.01050376,95204.0,95199.0,0.01050431]
[1768640457720,0.01050376,95204.0,95200.0,0.0105042]
[1768640457956,0.01050398,95202.0,95198.0,0.01050442]
[1768640458181,0.01050409,95201.0,95196.0,0.01050464]
[1768640458416,0.01050387,95203.0,95198.0,0.01050442]
[1768640458650,0.01050376,95204.0,95199.0,0.01050431]
[1768640459600,0.01050398,95202.0,95197.0,0.01050453]
[1768640459777,0.01050398,95202.0,95198.0,0.01050442]
[1768640460425,0.01050387,95203.0,95198.0,0.01050442]
[1768640461163,0.01050398,95202.0,95198.0,0.01050442]
[1768640462096,0.01050387,95203.0,95199.0,0.01050431]
[1768640462714,0.01050376,95204.0,95199.0,0.01050431]
[1768640462898,0.01050376,95204.0,95200.0,0.0105042]
[1768640463317,0.05880597,95205.0,95200.0,0.0105042]
[1768640464227,0.01050376,95204.0,95200.0,0.0105042]
[1768640464643,0.05880597,95205.0,95200.0,0.0105042]
[1768640464851,0.01050376,95204.0,95200.0,0.0105042]
[1768640465271,0.01050398,95202.0,95198.0,0.01050442]
[1768640465670,0.01050376,95204.0,95198.0,0.01050442]
[1768640465873,0.01050376,95204.0,95199.0,0.01050431]
[1768640465984,0.01050387,95203.0,95198.0,0.01050442]
[1768640466192,0.01050409,95201.0,95197.0,0.01050453]
[1768640466394,0.01050387,95203.0,95198.0,0.01050442]
[1768640466601,0.01050387,95203.0,95199.0,0.01050431]
[1768640467011,0.01050398,95202.0,95198.0,0.01045901]
[1768640467208,0.01050387,95203.0,95198.0,0.01045901]
[1768640467414,0.01050376,95204.0,95199.0,0.0104589]
[1768640467610,0.01050376,95204.0,95200.0,0.0105042]
[1768640468208,0.05880597,95205.0,95200.0,0.0105042]
[1768640468735,0.05880597,95205.0,95201.0,0.01050409]
[1768640469303,0.05880597,95205.0,95200.0,0.0105042]
[1768640470865,0.05880597,95205.0,95201.0,0.01050409]
[1768640471924,0.05880597,95205.0,95200.0,0.0105042]
[1768640473562,0.05880597,95205.0,95201.0,0.01050409]
[1768640473944,0.05880597,95205.0,95200.0,0.01031016]
[1768640474140,0.01050376,95204.0,95200.0,0.01031016]
[1768640474489,0.01050365,95205.0,95201.0,0.01050409]
[1768640475100,0.01050365,95205.0,95200.0,0.01031016]
[1768640475286,0.06302308,95204.0,95198.0,0.01050442]
[1768640475493,0.01050387,95203.0,95199.0,0.01050431]
[1768640475738,0.01050376,95204.0,95197.0,0.06302706]
[1768640475892,0.01050398,95202.0,95198.0,0.01050442]
[1768640476089,0.01050431,95199.0,95195.0,0.0004815]
[1768640476335,0.01050398,95202.0,95195.0,0.01050475]
[1768640476336,0.0105042,95200.0,95195.0,0.01050475]
[1768640476756,0.01050409,95201.0,95196.0,0.01050464]
[1768640477334,0.01050409,95201.0,95197.0,0.01050453]
[1768640478144,0.01050398,95202.0,95197.0,0.01050453]
[1768640478623,0.01050398,95202.0,95198.0,0.01050442]
[1768640479189,0.01050398,95202.0,95197.0,0.01050453]
[1768640479570,0.0105042,95200.0,95196.0,0.01050464]
[1768640479773,0.01050409,95201.0,95196.0,0.01050464]
[1768640480540,0.01050409,95201.0,95197.0,0.01050453]
[1768640480745,0.01050398,95202.0,95197.0,0.01050453]
[1768640481266,0.01050398,95202.0,95198.0,0.01050442]
[1768640481874,0.01050409,95201.0,95197.0,0.01050453]
[1768640482082,0.01050398,95202.0,95196.0,0.01050464]
[1768640482285,0.01050398,95202.0,95198.0,0.01050442]
[1768640482813,0.01050387,95203.0,95198.0,0.01050442]
[1768640483253,0.01050409,95201.0,95196.0,0.01050464]
[1768640483472,0.01050398,95202.0,95197.0,0.01050453]
[1768640483674,0.0105042,95200.0,95193.0,0.01050475]
[1768640483897,0.01050409,95201.0,95197.0,0.01050453]
[1768640484081,0.01050431,95199.0,95194.0,0.01050486]
[1768640484249,0.0105042,95200.0,95195.0,0.01050475]
[1768640484938,0.05804551,95198.0,95193.0,0.01050475]
[1768640485139,0.04754109,95196.0,95193.0,0.01050475]
[1768640486000,0.04754109,95196.0,95193.0,0.02100972]
[1768640486442,0.01050475,95195.0,95175.0,0.01165105]
[1768640486688,0.04754109,95187.0,95182.0,0.01050618]
[1768640487523,0.04754109,95185.0,95182.0,0.01050618]
[1768640487732,0.05804694,95185.0,95178.0,0.13778662]
[1768640487953,0.04754109,95183.0,95180.0,0.0105064]
[1768640488364,0.04754109,95183.0,95180.0,0.06303837]
[1768640488791,0.04754109,95183.0,95180.0,0.0105064]
[1768640489669,0.04754109,95183.0,95179.0,0.0420179]
[1768640489840,0.04754109,95183.0,95180.0,0.0105064]
[1768640490038,0.04754109,95183.0,95179.0,0.0420179]
[1768640490248,0.04754109,95183.0,95180.0,0.0105064]
[1768640490827,0.04754109,95183.0,95180.0,0.06303818]
[1768640491007,0.04754109,95183.0,95181.0,0.05253145]
[1768640491221,0.01050563,95187.0,95182.0,0.01050618]
[1768640491451,0.0482841,95186.0,95182.0,0.01050618]
[1768640491649,0.0482841,95186.0,95182.0,0.04201757]
[1768640491853,0.0482841,95186.0,95183.0,0.01050607]
[1768640492056,0.0482841,95186.0,95182.0,0.04201757]
[1768640492876,0.0482841,95186.0,95183.0,0.01050607]
[1768640493325,0.05878984,95186.0,95182.0,0.04201757]
[1768640493820,0.05878995,95185.0,95182.0,0.03151139]
[1768640494275,0.0482841,95185.0,95182.0,0.03151139]
[1768640496218,0.01050563,95187.0,95181.0,0.01050629]
[1768640496493,0.05878973,95187.0,95182.0,0.01050618]
[1768640496650,0.0482841,95187.0,95183.0,0.01050607]
[1768640497092,0.0482841,95187.0,95182.0,0.01050618]
[1768640497635,0.0482841,95187.0,95184.0,0.01050596]
[1768640498078,0.0482841,95187.0,95183.0,0.01050607]
[1768640498079,0.05878973,95187.0,95183.0,0.01050607]
[1768640498281,0.0482841,95187.0,95184.0,0.01050596]
[1768640498485,0.0482841,95187.0,95183.0,0.01050607]
[1768640498802,0.0482841,95187.0,95184.0,0.01050596]
[1768640499002,0.0482841,95187.0,95183.0,0.01050607]
[1768640499181,0.05878973,95187.0,95183.0,0.01050607]
[1768640499379,0.0482841,95187.0,95183.0,0.01050607]
[1768640501214,0.05878973,95187.0,95183.0,0.01050607]
[1768640501743,0.0482841,95187.0,95184.0,0.01050596]
[1768640502524,0.05878973,95187.0,95183.0,0.01050607]
[1768640503338,0.01050574,95186.0,95181.0,0.02101258]
[1768640503559,0.05878984,95186.0,95181.0,0.02101258]
[1768640503780,0.01050585,95185.0,95181.0,0.01050629]
[1768640503984,0.01050596,95184.0,95180.0,0.0105064]
[1768640504157,0.01050596,95184.0,95181.0,0.03151235]
[1768640504507,0.01050585,95185.0,95181.0,0.03151235]
[1768640505150,0.01050596,95184.0,95181.0,0.03151235]
[1768640505745,0.01050585,95185.0,95181.0,0.03151235]
[1768640506159,0.01050585,95185.0,95181.0,0.04201864]
[1768640506543,0.01050585,95185.0,95181.0,0.01050629]
[1768640506998,0.01050585,95185.0,95182.0,0.03151235]
[1768640507155,0.05878984,95186.0,95182.0,0.03151235]
[1768640507587,0.01050585,95185.0,95182.0,0.03151235]
[1768640509485,0.0482841,95185.0,95182.0,0.01050618]
[1768640509689,0.05878962,95188.0,95183.0,0.01050607]
[1768640509918,0.01050552,95188.0,95183.0,0.01050607]
[1768640510815,0.01050563,95187.0,95183.0,0.01050607]
[1768640511020,0.01050552,95188.0,95184.0,0.01050596]
[1768640511325,0.01050552,95188.0,95183.0,0.01050607]
[1768640517051,0.01050552,95188.0,95184.0,0.01050596]
[1768640517922,0.01050541,95189.0,95184.0,0.01050596]
[1768640518574,0.01050552,95188.0,95183.0,0.01050607]
[1768640519216,0.01050552,95188.0,95184.0,0.01050596]
[1768640519847,0.13665079,95195.0,95187.0,0.01050563]
[1768640520089,0.0630313,95191.0,95183.0,0.06303595]
[1768640520550,0.0482841,95193.0,95188.0,0.05252719]
[1768640520791,0.0482841,95193.0,95178.0,0.12728]
[1768640520792,0.01050497,95193.0,95178.0,0.12728]
[1768640521028,0.01050519,95191.0,95183.0,0.01050607]
[1768640521225,0.0105053,95190.0,95185.0,0.01050585]
[1768640521444,0.01050541,95189.0,95185.0,0.01050585]
[1768640521782,0.0105053,95190.0,95185.0,0.01050585]
[1768640522396,0.0105053,95190.0,95186.0,0.01050574]
[1768640522601,0.01050541,95189.0,95185.0,0.01050585]
[1768640523033,0.01050541,95189.0,95184.0,0.01050596]
[1768640523485,0.01050541,95189.0,95183.0,0.01050607]
[1768640523486,0.01050552,95188.0,95183.0,0.01050607]
[1768640525039,0.06303255,95189.0,95184.0,0.01050596]
[1768640525040,0.01050541,95189.0,95184.0,0.01050596]
[1768640525267,0.06303197,95190.0,95185.0,0.01050585]
[1768640525268,0.0105053,95190.0,95185.0,0.01050585]
[1768640525477,0.0105053,95190.0,95186.0,0.01050574]
[1768640525687,0.01050508,95192.0,95187.0,0.01050563]
[1768640525917,0.01050519,95191.0,95187.0,0.01050563]
[1768640526128,0.0105053,95190.0,95185.0,0.01050585]
[1768640527211,0.01050541,95189.0,95185.0,0.01050585]
[1768640527432,0.0105053,95190.0,95186.0,0.01050574]
[1768640528050,0.0105053,95190.0,95185.0,0.01050585]
[1768640530993,0.01050541,95189.0,95185.0,0.01050585]
[1768640531626,0.01050541,95189.0,95184.0,0.01050596]
[1768640531829,0.01050541,95189.0,95185.0,0.01050585]
[1768640532759,0.0105053,95190.0,95185.0,0.01050585]
[1768640533815,0.01050541,95189.0,95185.0,0.01050585]
[1768640534055,0.0105053,95190.0,95186.0,0.01050574]
[1768640534290,0.01050519,95191.0,95187.0,0.01050563]
[1768640535254,0.01050508,95192.0,95188.0,0.01050552]
[1768640535455,0.01050508,95192.0,95187.0,0.01050563]
[1768640535791,0.01050519,95191.0,95187.0,0.01050563]
[1768640536382,0.01050508,95192.0,95188.0,0.01050552]
[1768640536599,0.01050519,95191.0,95187.0,0.01050563]
[1768640536991,0.01050508,95192.0,95187.0,0.01050563]
[1768640538151,0.01050486,95194.0,95188.0,0.01050552]
[1768640538354,0.01050497,95193.0,95188.0,0.01050552]
[1768640538790,0.01050508,95192.0,95187.0,0.01050563]
[1768640539313,0.01050508,95192.0,95188.0,0.01050552]
[1768640540155,0.01050497,95193.0,95188.0,0.01050552]
[1768640540156,0.01050497,95193.0,95189.0,0.01050541]
[1768640540607,0.01050508,95192.0,95186.0,0.01050574]
[1768640540815,0.01050519,95191.0,95187.0,0.01050563]
[1768640541028,0.01050519,95191.0,95186.0,0.01050574]
[1768640541440,0.01050508,95192.0,95187.0,0.01050563]
[1768640542366,0.06303116,95191.0,95186.0,0.01050574]
[1768640542523,0.0105053,95190.0,95186.0,0.01050574]
[1768640542724,0.0105053,95190.0,95185.0,0.01050585]
[1768640542926,0.0105053,95190.0,95186.0,0.01050574]
[1768640543131,0.01050519,95191.0,95186.0,0.01050574]
[1768640543678,0.01050519,95191.0,95187.0,0.01050563]
[1768640544650,0.01050508,95192.0,95188.0,0.01050552]
[1768640544829,0.01050497,95193.0,95189.0,0.01050541]
[1768640545030,0.01050508,95192.0,95188.0,0.01050552]
[1768640545767,0.01050508,95192.0,95187.0,0.01050563]
[1768640546224,0.01050508,95192.0,95188.0,0.01050552]
[1768640547894,0.01050508,95192.0,95187.0,0.01050563]
[1768640548125,0.01050519,95191.0,95185.0,0.01050585]
[1768640548411,0.0105053,95190.0,95186.0,0.01050574]
[1768640549228,0.01050519,95191.0,95186.0,0.01050574]
[1768640550209,0.01050519,95191.0,95187.0,0.01050563]
[1768640550592,0.01050519,95191.0,95186.0,0.01050574]
[1768640552713,0.01050508,95192.0,95187.0,0.01050563]
[1768640556357,0.01050519,95191.0,95186.0,0.01050574]
[1768640556974,0.01050519,95191.0,95184.0,0.05252976]
[1768640557186,0.01050541,95189.0,95184.0,0.01050596]
[1768640557608,0.0105053,95190.0,95185.0,0.01050585]
[1768640557812,0.01050541,95189.0,95185.0,0.01050585]
[1768640558745,0.0105053,95190.0,95185.0,0.01050585]
[1768640558746,0.0105053,95190.0,95186.0,0.01050574]
[1768640559187,0.0105053,95190.0,95185.0,0.01050585]
[1768640560988,0.0105053,95190.0,95186.0,0.01050574]
[1768640562736,0.01050552,95188.0,95183.0,0.01050607]
[1768640563279,0.01050541,95189.0,95184.0,0.01050596]
[1768640563515,0.01050552,95188.0,95183.0,0.01050607]
[1768640564655,0.01050563,95187.0,95182.0,0.01050618]
[1768640565253,0.0105053,95190.0,95184.0,0.01050596]
[1768640565472,0.0105053,95190.0,95184.0,0.06303541]
[1768640566218,0.0105053,95190.0,95185.0,0.01050585]
[1768640569825,0.01050541,95189.0,95185.0,0.01050585]
[1768640570231,0.0105053,95190.0,95185.0,0.01050585]
[1768640570399,0.0105053,95190.0,95186.0,0.01050574]
[1768640571293,0.01050519,95191.0,95186.0,0.01050574]
[1768640571711,0.0105053,95190.0,95186.0,0.01050574]
[1768640572828,0.01050541,95189.0,95184.0,0.01050596]
[1768640573031,0.01050552,95188.0,95183.0,0.01050607]
[1768640573161,0.01050519,95191.0,95185.0,0.01050585]
[1768640573369,0.06302941,95194.0,95185.0,0.01050585]
[1768640573370,0.01050508,95192.0,95187.0,0.01050563]
[1768640574269,0.01050508,95192.0,95188.0,0.01050552]
[1768640574694,0.01050519,95191.0,95187.0,0.01050563]
[1768640575446,0.01050486,95194.0,95189.0,0.01050541]
[1768640577286,0.01050486,95194.0,95190.0,0.0105053]
[1768640577570,0.01050486,95194.0,95190.0,0.00887389]
[1768640577786,0.13664925,95195.0,95190.0,0.00887389]
[1768640578763,0.01050486,95194.0,95190.0,0.00887389]
[1768640579396,0.13664925,95195.0,95190.0,0.00887389]
[1768640579774,0.01050486,95194.0,95190.0,0.00887389]
[1768640580125,0.13664925,95195.0,95190.0,0.00887389]
[1768640580726,0.13664925,95195.0,95191.0,0.01050519]
[1768640580727,0.1261445,95195.0,95191.0,0.01050519]
[1768640580934,0.13664925,95195.0,95190.0,0.00887389]
[1768640581316,0.13664925,95195.0,95189.0,0.01050541]
[1768640581657,0.01050497,95193.0,95189.0,0.01050541]
[1768640581873,0.01050486,95194.0,95189.0,0.01050541]
[1768640582818,0.01050497,95193.0,95188.0,0.01050552]
[1768640583416,0.01050497,95193.0,95189.0,0.01050541]
[1768640583660,0.01050486,95194.0,95189.0,0.01050541]
[1768640583865,0.01050519,95191.0,95187.0,0.01050563]
[1768640584333,0.01050486,95194.0,95188.0,0.01050552]
[1768640584528,0.01050497,95193.0,95188.0,0.01050552]
[1768640584737,0.01050486,95194.0,95189.0,0.01050541]
[1768640586184,0.01050497,95193.0,95188.0,0.01050552]
[1768640586396,0.01050497,95193.0,95186.0,0.01050574]
[1768640586397,0.01050497,95193.0,95187.0,0.01050563]
[1768640586913,0.01050486,95194.0,95188.0,0.01050552]
[1768640587815,0.13664925,95195.0,95188.0,0.01050552]
[1768640588034,0.01050486,95194.0,95188.0,0.01050552]
[1768640588282,0.01050486,95194.0,95189.0,0.01050541]
[1768640588521,0.1261445,95195.0,95190.0,0.0105053]
[1768640588736,0.13664925,95195.0,95191.0,0.01050519]
[1768640589133,0.01050497,95193.0,95189.0,0.01050541]
[1768640589336,0.01050486,95194.0,95189.0,0.01050541]
[1768640589564,0.1261445,95197.0,95191.0,0.01050519]
[1768640589768,0.01050464,95196.0,95192.0,0.01050508]
[1768640589974,0.01050464,95196.0,95191.0,0.01050519]
[1768640590603,0.01050475,95195.0,95190.0,0.0105053]
[1768640590803,0.01050464,95196.0,95191.0,0.01050519]
[1768640591010,0.01050475,95195.0,95190.0,0.0105053]
[1768640591428,0.01050464,95196.0,95191.0,0.01050519]
[1768640591730,0.01050475,95195.0,95191.0,0.01050519]
[1768640592029,0.01050475,95195.0,95190.0,0.0105053]
[1768640593168,0.01050475,95195.0,95191.0,0.01050519]
[1768640595338,0.01050475,95195.0,95189.0,0.01050541]
[1768640595711,0.01050475,95195.0,95191.0,0.01050519]
[1768640596895,0.01050464,95196.0,95190.0,0.0105053]
[1768640597206,0.01050486,95194.0,95190.0,0.0105053]
[1768640597761,0.01050475,95195.0,95190.0,0.0105053]
[1768640597962,0.01050464,95196.0,95191.0,0.01050519]
[1768640598170,0.01050475,95195.0,95191.0,0.01050519]
[1768640598624,0.01050475,95195.0,95190.0,0.0105053]
[1768640598804,0.01050464,95196.0,95191.0,0.01050519]
[1768640598982,0.01050475,95195.0,95191.0,0.01050519]
[1768640599578,0.01050475,95195.0,95190.0,0.0105053]
[1768640599784,0.01050475,95195.0,95191.0,0.01050519]
[1768640601033,0.01045212,95195.0,95191.0,0.01050519]
[1768640601851,0.01045212,95195.0,95190.0,0.0105053]
[1768640603191,0.01050486,95194.0,95190.0,0.0105053]
[1768640603363,0.01050464,95196.0,95191.0,0.01050519]
[1768640603567,0.01050475,95195.0,95191.0,0.01050519]
[1768640604111,0.01050464,95196.0,95191.0,0.01050519]
[1768640604854,0.01050486,95194.0,95190.0,0.0105053]
[1768640605056,0.01050486,95194.0,95187.0,0.01050563]
[1768640605334,0.01050486,95194.0,95188.0,0.01050552]
[1768640605659,0.01050508,95192.0,95188.0,0.01050552]
[1768640606927,0.01050508,95192.0,95187.0,0.01050563]
[1768640607582,0.01050508,95192.0,95188.0,0.01050552]
[1768640608669,0.01050497,95193.0,95189.0,0.01050541]
[1768640609034,0.01050486,95194.0,95189.0,0.01050541]
[1768640609479,0.01050486,95194.0,95190.0,0.0105053]
[1768640609650,0.01050497,95193.0,95189.0,0.01050541]
[1768640609853,0.01050486,95194.0,95189.0,0.01050541]
[1768640610060,0.01050486,95194.0,95190.0,0.0105053]
[1768640610298,0.01050486,95194.0,95189.0,0.01050541]
[1768640612865,0.01050486,95194.0,95190.0,0.0105053]
[1768640614645,0.01050486,95194.0,95189.0,0.01050541]
[1768640614855,0.01050464,95196.0,95190.0,0.0105053]
[1768640615061,0.01050475,95195.0,95190.0,0.0105053]
[1768640615268,0.01050486,95194.0,95189.0,0.01050541]
[1768640615702,0.01050486,95194.0,95190.0,0.01042658]
[1768640617595,0.01050497,95193.0,95189.0,0.01050541]
[1768640618002,0.01050486,95194.0,95189.0,0.01050541]
[1768640624449,0.01050486,95194.0,95190.0,0.0105053]
[1768640625177,0.01050464,95196.0,95189.0,0.01050541]
[1768640625384,0.01050486,95194.0,95190.0,0.0105053]
[1768640625990,0.01050486,95194.0,95190.0,0.01042657]
[1768640626406,0.01050475,95195.0,95190.0,0.01042657]
[1768640628417,0.01050486,95194.0,95189.0,0.01050541]
[1768640628815,0.01050486,95194.0,95190.0,0.0105053]
[1768640630492,0.01050475,95195.0,95190.0,0.0105053]
[1768640630698,0.01050486,95194.0,95190.0,0.0105053]
[1768640630927,0.01050497,95193.0,95188.0,0.01050552]
[1768640631130,0.01050486,95194.0,95190.0,0.0105053]
[1768640636768,0.01050486,95194.0,95189.0,0.01050541]
[1768640638805,0.01050486,95194.0,95190.0,0.0105053]
[1768640640302,0.01050464,95196.0,95191.0,0.01050519]
[1768640640521,0.0105042,95200.0,95196.0,0.01050464]
[1768640640729,0.13778398,95202.0,95197.0,0.01050453]
[1768640640968,0.13778398,95202.0,95196.0,0.05648481]
[1768640640969,0.03151109,95202.0,95196.0,0.05648481]
[1768640641168,0.04201507,95202.0,95198.0,0.01050442]
[1768640641371,0.01050409,95201.0,95197.0,0.01050453]
[1768640641581,0.01050409,95201.0,95196.0,0.05648481]
[1768640642223,0.0105042,95200.0,95196.0,0.04598017]
[1768640642433,0.01050409,95201.0,95196.0,0.04598017]
[1768640642647,0.0105042,95200.0,95196.0,0.05648481]
[1768640643259,0.0105042,95200.0,95196.0,0.04598017]
[1768640643472,0.0105042,95200.0,95195.0,0.01050475]
[1768640644708,0.0105042,95200.0,95196.0,0.01050464]
[1768640644910,0.0105042,95200.0,95195.0,0.01050475]
[1768640645327,0.0105042,95200.0,95196.0,0.01050464]
[1768640645947,0.0105042,95200.0,95195.0,0.01050475]
[1768640650116,0.01097205,95201.0,95196.0,0.01050464]
[1768640650881,0.02147691,95201.0,95196.0,0.01050464]
[1768640651209,0.02147691,95201.0,95197.0,0.01050453]
[1768640652337,0.02147691,95201.0,95196.0,0.01050464]
[1768640652553,0.02147691,95201.0,95197.0,0.01050453]
[1768640652885,0.02147691,95201.0,95196.0,0.01050464]
[1768640653273,0.0105042,95200.0,95196.0,0.01050464]
[1768640653541,0.01097205,95201.0,95196.0,0.01050464]
[1768640653928,0.0105042,95200.0,95196.0,0.01050464]
[1768640656434,0.0105042,95200.0,95195.0,0.01050475]
[1768640658446,0.0105042,95200.0,95196.0,0.01050464]
[1768640658656,0.0105042,95200.0,95195.0,0.01050475]
[1768640658855,0.0105042,95200.0,95194.0,0.01050486]
[1768640659060,0.01050453,95197.0,95193.0,0.01050497]
[1768640659285,0.01050442,95198.0,95193.0,0.01050497]
[1768640659501,0.01050453,95197.0,95192.0,0.01050508]
[1768640659757,0.01050453,95197.0,95193.0,0.01050497]
[1768640659905,0.01050475,95195.0,95191.0,0.01050519]
[1768640660121,0.01050453,95197.0,95191.0,0.01050519]
[1768640660325,0.01050453,95197.0,95193.0,0.01050497]
[1768640660666,0.01050442,95198.0,95193.0,0.01050497]
[1768640661230,0.01050453,95197.0,95192.0,0.01050508]
[1768640661430,0.01050453,95197.0,95191.0,0.01050519]
[1768640661637,0.01050464,95196.0,95192.0,0.01050508]
[1768640662118,0.01050464,95196.0,95190.0,0.06303177]
[1768640662119,0.01050475,95195.0,95190.0,0.0105053]
[1768640662328,0.01050475,95195.0,95191.0,0.01050519]
[1768640662531,0.01050464,95196.0,95191.0,0.01050519]
[1768640663219,0.01050464,95196.0,95192.0,0.01050508]
[1768640664242,0.01050453,95197.0,95192.0,0.01050508]
[1768640665974,0.01050464,95196.0,95191.0,0.01050519]
[1768640666518,0.01050453,95197.0,95192.0,0.01050508]
[1768640667064,0.01050464,95196.0,95191.0,0.01050519]
[1768640667268,0.01050464,95196.0,95192.0,0.01050508]
[1768640669543,0.01050464,95196.0,95191.0,0.01050519]
[1768640669544,0.01050464,95196.0,95190.0,0.0105053]
[1768640669979,0.01050464,95196.0,95191.0,0.01050519]
[1768640670812,0.01050453,95197.0,95192.0,0.01050508]
[1768640671011,0.01050464,95196.0,95190.0,0.0105053]
[1768640671184,0.01050475,95195.0,95191.0,0.01050519]
[1768640671594,0.01050475,95195.0,95190.0,0.0105053]
[1768640671795,0.01050486,95194.0,95190.0,0.0105053]
[1768640672394,0.01050453,95197.0,95191.0,0.01050519]
[1768640673194,0.01050464,95196.0,95192.0,0.01050508]
[1768640673863,0.01050464,95196.0,95191.0,0.01050519]
[1768640674643,0.01050464,95196.0,95192.0,0.01050508]
[1768640674833,0.01050464,95196.0,95191.0,0.01050519]
[1768640677030,0.01050464,95196.0,95191.0,0.01042644]
[1768640680283,0.01050453,95197.0,95192.0,0.01050508]
[1768640680991,0.01050464,95196.0,95191.0,0.01042644]
[1768640681131,0.01050464,95196.0,95192.0,0.01050508]
[1768640681339,0.01050453,95197.0,95192.0,0.01050508]
[1768640682373,0.01050475,95195.0,95191.0,0.01050519]
[1768640682572,0.01050464,95196.0,95191.0,0.01050519]
[1768640682962,0.01050475,95195.0,95190.0,0.0105053]
[1768640683170,0.01050475,95195.0,95191.0,0.01050519]
[1768640686502,0.01050475,95195.0,95190.0,0.0105053]
[1768640686911,0.01050475,95195.0,95191.0,0.01050519]
[1768640688062,0.01050486,95194.0,95189.0,0.01050541]
[1768640688269,0.01050486,95194.0,95190.0,0.0105053]
[1768640689281,0.01050486,95194.0,95189.0,0.01050541]
[1768640690047,0.01050486,95194.0,95190.0,0.0105053]
[1768640690460,0.01050486,95194.0,95189.0,0.01050541]
[1768640691440,0.01050497,95193.0,95186.0,0.13778574]
[1768640691675,0.01050508,95192.0,95187.0,0.01050563]
[1768640691844,0.01050497,95193.0,95187.0,0.01050563]
[1768640691845,0.01050497,95193.0,95188.0,0.01050552]
[1768640692663,0.01050519,95191.0,95186.0,0.13778574]
[1768640692850,0.01050519,95191.0,95187.0,0.01050563]
[1768640693048,0.01050508,95192.0,95187.0,0.01050563]
[1768640693588,0.01050508,95192.0,95188.0,0.01050552]
[1768640694505,0.01050508,95192.0,95187.0,0.01050563]
[1768640696335,0.01050508,95192.0,95188.0,0.01050552]
[1768640696535,0.01050497,95193.0,95188.0,0.01050552]
[1768640697371,0.01050497,95193.0,95189.0,0.01050541]
[1768640698057,0.01050508,95192.0,95188.0,0.01050552]
[1768640698254,0.01050497,95193.0,95188.0,0.01050552]
[1768640698587,0.01050497,95193.0,95189.0,0.01050541]
[1768640699431,0.01050497,95193.0,95188.0,0.01050552]
[1768640699642,0.01050497,95193.0,95189.0,0.01050541]
[1768640701037,0.01050497,95193.0,95188.0,0.01050552]
[1768640701637,0.01050508,95192.0,95188.0,0.01050552]
[1768640701827,0.01050497,95193.0,95188.0,0.01050552]
[1768640702459,0.01050486,95194.0,95189.0,0.01050541]
[1768640702662,0.01050497,95193.0,95189.0,0.01050541]
[1768640703229,0.01050497,95193.0,95186.0,0.13778574]
[1768640703458,0.01050519,95191.0,95186.0,0.13778574]
[1768640704323,0.01050508,95192.0,95187.0,0.01050563]
[1768640704564,0.01050519,95191.0,95187.0,0.01050563]
[1768640705591,0.01050497,95193.0,95188.0,0.01050552]
[1768640705931,0.01050508,95192.0,95188.0,0.01050552]
[1768640706149,0.01050508,95192.0,95187.0,0.01050563]
[1768640708084,0.01050508,95192.0,95187.0,0.01042686]
[1768640708502,0.01050519,95191.0,95187.0,0.01042686]
[1768640711087,0.01050519,95191.0,95186.0,0.13778574]
[1768640711267,0.06303143,95191.0,95186.0,0.12728]
[1768640711465,0.06303143,95191.0,95186.0,0.12718917]
[1768640711690,0.06303143,95191.0,95186.0,0.12714376]
[1768640712111,0.01050519,95191.0,95186.0,0.1376495]
[1768640712307,0.01050519,95191.0,95187.0,0.01050563]
[1768640713098,0.01050519,95191.0,95186.0,0.1376495]
[1768640713324,0.01050508,95192.0,95187.0,0.01050563]
[1768640713540,0.01050519,95191.0,95187.0,0.01050563]
[1768640714008,0.01050497,95193.0,95188.0,0.01050552]
[1768640714228,0.01050497,95193.0,95186.0,0.1376495]
[1768640714229,0.06303059,95192.0,95186.0,0.1376495]
[1768640714767,0.01050508,95192.0,95187.0,0.01050563]
[1768640714985,0.01050519,95191.0,95187.0,0.01050563]
[1768640715189,0.01050519,95191.0,95186.0,0.1376495]
[1768640715606,0.01050519,95191.0,95187.0,0.01050563]
[1768640716028,0.01050508,95192.0,95187.0,0.01050563]
[1768640716238,0.01050508,95192.0,95188.0,0.01050552]
[1768640719129,0.01050497,95193.0,95188.0,0.01050552]
[1768640719611,0.01050497,95193.0,95189.0,0.01050541]
[1768640720013,0.01050497,95193.0,95188.0,0.01050552]
[1768640720295,0.01050497,95193.0,95187.0,0.06303375]
[1768640720296,0.01050508,95192.0,95187.0,0.01050563]
[1768640720668,0.01050519,95191.0,95187.0,0.01046022]
[1768640721106,0.01050519,95191.0,95187.0,0.01038145]
[1768640721326,0.0105053,95190.0,95186.0,0.1376495]
[1768640721560,0.01050541,95189.0,95186.0,0.12714376]
[1768640721765,0.0105053,95190.0,95186.0,0.12714376]
[1768640722556,0.01050541,95189.0,95186.0,0.12714376]
[1768640723513,0.0105053,95190.0,95186.0,0.1376495]
[1768640724271,0.01050519,95191.0,95186.0,0.1376495]
[1768640724477,0.01050519,95191.0,95187.0,0.01050563]
[1768640725021,0.01050519,95191.0,95186.0,0.1376495]
[1768640725312,0.0105053,95190.0,95186.0,0.12714376]
[1768640725527,0.01050541,95189.0,95186.0,0.12714376]
[1768640725881,0.01050519,95191.0,95187.0,0.01050563]
[1768640726060,0.01050508,95192.0,95187.0,0.01050563]
[1768640726263,0.01050519,95191.0,95186.0,0.1376495]
[1768640726909,0.01050508,95192.0,95187.0,0.01050563]